[Event "Titled Tuesday Blitz May 16 Early 2023"]
[White "KorolDimitriy75"]
[Black "Rosh Jain"]
[BlackFideId "25789465"]
[WhiteElo "2476"]
[BlackElo "2233"]
[Result "0-1"]
[Round "10"]
[TimeControl "180+2"]
[Date "2023.05.16"]
[WhiteClock "0:00:00"]
[BlackClock "0:00:21"]

1. d4 {[%clk 0:03:00]}  Nf6 {[%clk 0:02:59]} 2. c4 {[%clk 0:03:01]}  e6 {[%clk 0:02:59]} 3. Nc3 {[%clk 0:03:02]}  Bb4 {[%clk 0:02:59]} 4. Qc2 {[%clk 0:03:02]}  d5 {[%clk 0:02:55]} 5. cxd5 {[%clk 0:03:01]}  exd5 {[%clk 0:02:55]} 6. Bg5 {[%clk 0:03:01]}  O-O {[%clk 0:02:55]} 7. e3 {[%clk 0:03:00]}  c5 {[%clk 0:02:55]} 8. Nf3 {[%clk 0:02:58]}  Nc6 {[%clk 0:02:54]} 9. Be2 {[%clk 0:02:47]}  Bg4 {[%clk 0:02:46]} 10. dxc5 {[%clk 0:02:08]}  Bxf3 {[%clk 0:02:31]} 11. Bxf3 {[%clk 0:02:05]}  d4 {[%clk 0:02:31]} 12. Rd1 {[%clk 0:01:59]}  Qe7 {[%clk 0:02:22]} 13. a3 {[%clk 0:01:16]}  Ba5 {[%clk 0:01:51]} 14. Bxc6 {[%clk 0:00:38]}  dxc3 {[%clk 0:01:39]} 15. b4 {[%clk 0:00:37]}  bxc6 {[%clk 0:01:18]} 16. bxa5 {[%clk 0:00:36]}  Qe5 {[%clk 0:01:18]} 17. Bxf6 {[%clk 0:00:29]}  Qxf6 {[%clk 0:01:19]} 18. O-O {[%clk 0:00:28]}  Rfd8 {[%clk 0:01:11]} 19. g3 {[%clk 0:00:17]}  Qe5 {[%clk 0:01:00]} 20. Rfe1 {[%clk 0:00:13]}  Qxc5 {[%clk 0:00:58]} 21. a4 {[%clk 0:00:09]}  Qxa5 {[%clk 0:00:57]} 22. Rd4 {[%clk 0:00:08]}  c5 {[%clk 0:00:49]} 23. Rc4 {[%clk 0:00:08]}  Rd2 {[%clk 0:00:46]} 24. Qxc3 {[%clk 0:00:08]}  Qxc3 {[%clk 0:00:44]} 25. Rxc3 {[%clk 0:00:09]}  Rc8 {[%clk 0:00:43]} 26. Rec1 {[%clk 0:00:08]}  Rd5 {[%clk 0:00:42]} 27. Rc4 {[%clk 0:00:07]}  f5 {[%clk 0:00:37]} 28. Kg2 {[%clk 0:00:06]}  g6 {[%clk 0:00:37]} 29. h4 {[%clk 0:00:06]}  Kf7 {[%clk 0:00:37]} 30. Kf3 {[%clk 0:00:06]}  Ke6 {[%clk 0:00:36]} 31. e4 {[%clk 0:00:06]}  fxe4+ {[%clk 0:00:36]} 32. Kxe4 {[%clk 0:00:07]}  Kd6 {[%clk 0:00:35]} 33. R1c2 {[%clk 0:00:06]}  Rf8 {[%clk 0:00:32]} 34. f4 {[%clk 0:00:05]}  Re8+ {[%clk 0:00:32]} 35. Kf3 {[%clk 0:00:05]}  Rd3+ {[%clk 0:00:32]} 36. Kg4 {[%clk 0:00:05]}  Ree3 {[%clk 0:00:31]} 37. Kg5 {[%clk 0:00:05]}  Rxg3+ {[%clk 0:00:29]} 38. Kf6 {[%clk 0:00:05]}  Rd5 {[%clk 0:00:27]} 39. Re2 {[%clk 0:00:04]}  Rf5+ {[%clk 0:00:24]} 40. Kg7 {[%clk 0:00:03]}  Rf3 {[%clk 0:00:20]} 41. Rd2+ {[%clk 0:00:02]}  Kc6 {[%clk 0:00:20]} 42. Rdc2 {[%clk 0:00:01]}  R3xf4 {[%clk 0:00:20]} 43. Kxh7 {[%clk 0:00:02]}  Rxc4 {[%clk 0:00:18]} 44. Rxc4 {[%clk 0:00:02]}  Rf6 {[%clk 0:00:19]} 45. Kg7 {[%clk 0:00:02]}  Rd6 {[%clk 0:00:18]} 46. Kf7 {[%clk 0:00:01]}  Kd5 {[%clk 0:00:18]} 47. Rg4 {[%clk 0:00:01]}  c4 {[%clk 0:00:19]} 48. Rxg6 {[%clk 0:00:02]}  Rxg6 {[%clk 0:00:19]} 49. Kxg6 {[%clk 0:00:03]}  c3 {[%clk 0:00:19]} 50. h5 {[%clk 0:00:03]}  c2 {[%clk 0:00:20]} 51. h6 {[%clk 0:00:04]}  c1=Q {[%clk 0:00:21]} 52. h7 {[%clk 0:00:00]}  Qc3 {[%clk 0:00:21]} 0-1


[Site "https://www.chess.com"]

[Event "Titled Tuesday Blitz May 16 Early 2023"]
[White "Rios Escobar, Adan"]
[Black "Rodriguez Santiago, Jaime"]
[WhiteFideId "3403645"]
[BlackFideId "3100898"]
[WhiteElo "2463"]
[BlackElo "2025"]
[Result "1-0"]
[Round "10"]
[TimeControl "180+2"]
[Date "2023.05.16"]
[WhiteClock "0:01:23"]
[BlackClock "0:00:40"]

1. d4 {[%clk 0:03:00]}  Nf6 {[%clk 0:02:59]} 2. g3 {[%clk 0:02:58]}  e6 {[%clk 0:02:58]} 3. c4 {[%clk 0:02:57]}  d5 {[%clk 0:02:58]} 4. Nf3 {[%clk 0:02:58]}  dxc4 {[%clk 0:02:58]} 5. Bg2 {[%clk 0:02:58]}  c5 {[%clk 0:02:58]} 6. O-O {[%clk 0:02:56]}  Nc6 {[%clk 0:02:57]} 7. dxc5 {[%clk 0:02:54]}  Qxd1 {[%clk 0:02:57]} 8. Rxd1 {[%clk 0:02:54]}  Bxc5 {[%clk 0:02:56]} 9. Nbd2 {[%clk 0:02:55]}  c3 {[%clk 0:02:55]} 10. bxc3 {[%clk 0:02:55]}  O-O {[%clk 0:02:56]} 11. Nb3 {[%clk 0:02:52]}  Be7 {[%clk 0:02:56]} 12. c4 {[%clk 0:02:52]}  Bd7 {[%clk 0:02:44]} 13. Bb2 {[%clk 0:02:51]}  Rfc8 {[%clk 0:02:31]} 14. Rac1 {[%clk 0:02:49]}  Be8 {[%clk 0:02:25]} 15. Nfd4 {[%clk 0:02:44]}  a5 {[%clk 0:02:08]} 16. Nb5 {[%clk 0:02:41]}  a4 {[%clk 0:02:07]} 17. N3d4 {[%clk 0:02:37]}  Bc5 {[%clk 0:01:53]} 18. Nxc6 {[%clk 0:02:22]}  Bxc6 {[%clk 0:01:51]} 19. Nd6 {[%clk 0:02:15]}  Bxd6 {[%clk 0:01:37]} 20. Rxd6 {[%clk 0:02:13]}  Bxg2 {[%clk 0:01:37]} 21. Kxg2 {[%clk 0:02:13]}  a3 {[%clk 0:01:37]} 22. Be5 {[%clk 0:01:47]}  b5 {[%clk 0:01:21]} 23. Bxf6 {[%clk 0:01:39]}  gxf6 {[%clk 0:01:19]} 24. c5 {[%clk 0:01:40]}  b4 {[%clk 0:01:09]} 25. Rb6 {[%clk 0:01:39]}  Ra5 {[%clk 0:01:04]} 26. c6 {[%clk 0:01:30]}  Rc7 {[%clk 0:00:49]} 27. Rb7 {[%clk 0:01:22]}  Ra7 {[%clk 0:00:49]} 28. Rxa7 {[%clk 0:01:22]}  Rxa7 {[%clk 0:00:40]} 29. c7 {[%clk 0:01:23]} 1-0


[Site "https://www.chess.com"]

[Event "Titled Tuesday Blitz May 16 Early 2023"]
[White "Zaksaite, Salomeja"]
[Black "Balla, Tamas-Kristof"]
[WhiteFideId "12801496"]
[BlackFideId "1208497"]
[WhiteElo "2059"]
[BlackElo "2334"]
[Result "1-0"]
[Round "10"]
[TimeControl "180+2"]
[Date "2023.05.16"]
[WhiteClock "0:00:14"]
[BlackClock "0:00:00"]

1. e4 {[%clk 0:02:54]}  c6 {[%clk 0:02:36]} 2. d4 {[%clk 0:02:53]}  d5 {[%clk 0:02:34]} 3. exd5 {[%clk 0:02:54]}  cxd5 {[%clk 0:02:34]} 4. Bd3 {[%clk 0:02:55]}  Nc6 {[%clk 0:02:31]} 5. c3 {[%clk 0:02:56]}  Nf6 {[%clk 0:02:30]} 6. Bf4 {[%clk 0:02:54]}  Bg4 {[%clk 0:02:30]} 7. Qb3 {[%clk 0:02:51]}  Qc8 {[%clk 0:02:30]} 8. Ne2 {[%clk 0:02:50]}  e6 {[%clk 0:02:30]} 9. O-O {[%clk 0:02:49]}  Be7 {[%clk 0:02:29]} 10. Ng3 {[%clk 0:02:49]}  Nh5 {[%clk 0:02:21]} 11. Nxh5 {[%clk 0:02:36]}  Bxh5 {[%clk 0:02:20]} 12. Na3 {[%clk 0:02:33]}  a6 {[%clk 0:02:14]} 13. Nc2 {[%clk 0:02:33]}  O-O {[%clk 0:02:12]} 14. Ne3 {[%clk 0:02:33]}  b5 {[%clk 0:02:08]} 15. Qc2 {[%clk 0:02:32]}  Bg6 {[%clk 0:02:06]} 16. a4 {[%clk 0:02:30]}  b4 {[%clk 0:01:59]} 17. Bxg6 {[%clk 0:02:22]}  hxg6 {[%clk 0:01:40]} 18. Rac1 {[%clk 0:02:18]}  bxc3 {[%clk 0:01:40]} 19. bxc3 {[%clk 0:02:14]}  Na5 {[%clk 0:01:39]} 20. c4 {[%clk 0:02:13]}  dxc4 {[%clk 0:01:20]} 21. Nxc4 {[%clk 0:02:14]}  Nxc4 {[%clk 0:01:19]} 22. Qxc4 {[%clk 0:02:10]}  Qd7 {[%clk 0:01:17]} 23. Rfd1 {[%clk 0:02:04]}  Rfc8 {[%clk 0:01:13]} 24. Qb3 {[%clk 0:01:47]}  Rxc1 {[%clk 0:01:09]} 25. Bxc1 {[%clk 0:01:46]}  Bf6 {[%clk 0:01:02]} 26. d5 {[%clk 0:01:44]}  Rd8 {[%clk 0:01:02]} 27. d6 {[%clk 0:01:39]}  Be5 {[%clk 0:01:02]} 28. Bg5 {[%clk 0:01:37]}  f6 {[%clk 0:00:59]} 29. Be3 {[%clk 0:01:33]}  Kf7 {[%clk 0:00:50]} 30. Bb6 {[%clk 0:01:19]}  Rb8 {[%clk 0:00:48]} 31. a5 {[%clk 0:01:19]}  Bxd6 {[%clk 0:00:35]} 32. Qd3 {[%clk 0:01:12]}  Ke7 {[%clk 0:00:33]} 33. Qxa6 {[%clk 0:01:03]}  Bxh2+ {[%clk 0:00:31]} 34. Kxh2 {[%clk 0:01:02]}  Qxd1 {[%clk 0:00:24]} 35. Qa7+ {[%clk 0:01:01]}  Kf8 {[%clk 0:00:18]} 36. Qxb8+ {[%clk 0:01:01]}  Kf7 {[%clk 0:00:19]} 37. Qb7+ {[%clk 0:00:38]}  Kg8 {[%clk 0:00:17]} 38. Qf3 {[%clk 0:00:33]}  Qa1 {[%clk 0:00:15]} 39. g3 {[%clk 0:00:31]}  g5 {[%clk 0:00:13]} 40. Qb3 {[%clk 0:00:23]}  Kf7 {[%clk 0:00:09]} 41. Qc4 {[%clk 0:00:21]}  Qb2 {[%clk 0:00:05]} 42. Be3 {[%clk 0:00:15]}  Qa3 {[%clk 0:00:05]} 43. a6 {[%clk 0:00:15]}  g4 {[%clk 0:00:00]} 44. a7 {[%clk 0:00:14]} 1-0


[Site "https://www.chess.com"]

[Event "Titled Tuesday Blitz May 16 Early 2023"]
[White "Shubenkova, Veronika"]
[Black "Quirke, Jeffrey"]
[WhiteFideId "44124040"]
[BlackFideId "2013029"]
[WhiteElo "2060"]
[BlackElo "2231"]
[Result "1/2-1/2"]
[Round "10"]
[TimeControl "180+2"]
[Date "2023.05.16"]
[WhiteClock "0:01:01"]
[BlackClock "0:00:09"]

1. d4 {[%clk 0:03:00]}  e6 {[%clk 0:02:59]} 2. Nf3 {[%clk 0:03:01]}  c5 {[%clk 0:02:55]} 3. c3 {[%clk 0:03:00]}  Nf6 {[%clk 0:02:53]} 4. g3 {[%clk 0:02:59]}  b6 {[%clk 0:02:53]} 5. Bg2 {[%clk 0:02:59]}  Bb7 {[%clk 0:02:54]} 6. O-O {[%clk 0:02:59]}  Be7 {[%clk 0:02:54]} 7. Nbd2 {[%clk 0:02:57]}  O-O {[%clk 0:02:54]} 8. Re1 {[%clk 0:02:56]}  d5 {[%clk 0:02:45]} 9. Ne5 {[%clk 0:02:55]}  Nbd7 {[%clk 0:02:44]} 10. f4 {[%clk 0:02:52]}  cxd4 {[%clk 0:02:37]} 11. cxd4 {[%clk 0:02:49]}  b5 {[%clk 0:02:32]} 12. e3 {[%clk 0:02:48]}  Qb6 {[%clk 0:02:14]} 13. g4 {[%clk 0:02:41]}  Nxe5 {[%clk 0:02:13]} 14. fxe5 {[%clk 0:02:39]}  Nd7 {[%clk 0:02:13]} 15. Nf3 {[%clk 0:02:36]}  f6 {[%clk 0:02:05]} 16. exf6 {[%clk 0:02:32]}  Nxf6 {[%clk 0:01:49]} 17. Ne5 {[%clk 0:02:31]}  Rad8 {[%clk 0:01:49]} 18. Qd3 {[%clk 0:02:29]}  Ne4 {[%clk 0:01:46]} 19. Rf1 {[%clk 0:02:21]}  Rxf1+ {[%clk 0:01:44]} 20. Bxf1 {[%clk 0:02:18]}  a6 {[%clk 0:01:33]} 21. Bd2 {[%clk 0:02:17]}  Bd6 {[%clk 0:01:29]} 22. Bg2 {[%clk 0:02:17]}  Bxe5 {[%clk 0:00:57]} 23. dxe5 {[%clk 0:02:15]}  Nxd2 {[%clk 0:00:57]} 24. Qxd2 {[%clk 0:02:15]}  d4 {[%clk 0:00:43]} 25. exd4 {[%clk 0:02:08]}  Bxg2 {[%clk 0:00:41]} 26. Qxg2 {[%clk 0:02:04]}  Qxd4+ {[%clk 0:00:39]} 27. Kh1 {[%clk 0:02:04]}  Qxe5 {[%clk 0:00:37]} 28. Rf1 {[%clk 0:02:03]}  h6 {[%clk 0:00:31]} 29. h3 {[%clk 0:01:59]}  Rd3 {[%clk 0:00:27]} 30. Rc1 {[%clk 0:01:50]}  Kh7 {[%clk 0:00:26]} 31. Qc2 {[%clk 0:01:28]}  Qe4+ {[%clk 0:00:20]} 32. Kh2 {[%clk 0:01:29]}  Re3 {[%clk 0:00:13]} 33. Qxe4+ {[%clk 0:01:28]}  Rxe4 {[%clk 0:00:13]} 34. Rc2 {[%clk 0:01:29]}  Kg6 {[%clk 0:00:13]} 35. Kg3 {[%clk 0:01:30]}  Kf6 {[%clk 0:00:13]} 36. Kf3 {[%clk 0:01:30]}  Re1 {[%clk 0:00:11]} 37. Rc6 {[%clk 0:01:26]}  Rb1 {[%clk 0:00:11]} 38. b3 {[%clk 0:01:26]}  a5 {[%clk 0:00:07]} 39. Ra6 {[%clk 0:01:25]}  a4 {[%clk 0:00:07]} 40. bxa4 {[%clk 0:01:25]}  bxa4 {[%clk 0:00:08]} 41. Rxa4 {[%clk 0:01:24]}  Rh1 {[%clk 0:00:07]} 42. Kg2 {[%clk 0:01:24]}  Ra1 {[%clk 0:00:06]} 43. Ra6 {[%clk 0:01:24]}  g6 {[%clk 0:00:06]} 44. a4 {[%clk 0:01:23]}  h5 {[%clk 0:00:06]} 45. gxh5 {[%clk 0:01:22]}  gxh5 {[%clk 0:00:07]} 46. Kg3 {[%clk 0:01:22]}  Kf5 {[%clk 0:00:08]} 47. Kh4 {[%clk 0:01:21]}  e5 {[%clk 0:00:07]} 48. Kxh5 {[%clk 0:01:20]}  e4 {[%clk 0:00:08]} 49. h4 {[%clk 0:01:20]}  e3 {[%clk 0:00:08]} 50. Ra5+ {[%clk 0:01:17]}  Kf4 {[%clk 0:00:08]} 51. Ra8 {[%clk 0:01:15]}  e2 {[%clk 0:00:08]} 52. Rf8+ {[%clk 0:01:15]}  Kg3 {[%clk 0:00:08]} 53. Rg8+ {[%clk 0:01:07]}  Kh3 {[%clk 0:00:09]} 54. Re8 {[%clk 0:01:07]}  e1=Q {[%clk 0:00:09]} 55. Rxe1 {[%clk 0:01:07]}  Rxe1 {[%clk 0:00:10]} 56. Kg5 {[%clk 0:01:04]}  Ra1 {[%clk 0:00:10]} 57. h5 {[%clk 0:01:03]}  Rxa4 {[%clk 0:00:11]} 58. h6 {[%clk 0:01:04]}  Ra8 {[%clk 0:00:10]} 59. h7 {[%clk 0:01:04]}  Kg3 {[%clk 0:00:09]} 60. Kg6 {[%clk 0:01:04]}  Kg4 {[%clk 0:00:09]} 61. Kg7 {[%clk 0:01:03]}  Kg5 {[%clk 0:00:09]} 62. h8=Q {[%clk 0:01:01]}  Rxh8 {[%clk 0:00:09]} 63. Kxh8 {[%clk 0:01:01]} 1/2-1/2


[Site "https://www.chess.com"]

[Event "Titled Tuesday Blitz May 16 Early 2023"]
[White "Dishman, Stephen"]
[Black "KSho99"]
[WhiteFideId "403024"]
[WhiteElo "2204"]
[BlackElo "2166"]
[Result "1-0"]
[Round "10"]
[TimeControl "180+2"]
[Date "2023.05.16"]
[WhiteClock "0:01:32"]
[BlackClock "0:00:00"]

1. c4 {[%clk 0:03:00]}  e5 {[%clk 0:02:56]} 2. g3 {[%clk 0:03:00]}  c6 {[%clk 0:02:56]} 3. d4 {[%clk 0:02:58]}  e4 {[%clk 0:02:55]} 4. Nc3 {[%clk 0:02:57]}  d5 {[%clk 0:02:53]} 5. Qb3 {[%clk 0:02:54]}  Nf6 {[%clk 0:02:32]} 6. Bg5 {[%clk 0:02:53]}  dxc4 {[%clk 0:02:23]} 7. Qxc4 {[%clk 0:02:52]}  Be6 {[%clk 0:02:23]} 8. Qa4 {[%clk 0:02:50]}  b5 {[%clk 0:02:10]} 9. Qd1 {[%clk 0:02:49]}  Qa5 {[%clk 0:01:40]} 10. Bxf6 {[%clk 0:02:38]}  gxf6 {[%clk 0:01:39]} 11. Bg2 {[%clk 0:02:36]}  f5 {[%clk 0:01:35]} 12. a3 {[%clk 0:02:32]}  Nd7 {[%clk 0:01:31]} 13. Nh3 {[%clk 0:02:30]}  h5 {[%clk 0:01:14]} 14. O-O {[%clk 0:02:29]}  h4 {[%clk 0:01:13]} 15. Nf4 {[%clk 0:02:17]}  Bd6 {[%clk 0:01:05]} 16. Nxe6 {[%clk 0:02:08]}  fxe6 {[%clk 0:01:03]} 17. Qb3 {[%clk 0:02:08]}  Ke7 {[%clk 0:00:58]} 18. Rac1 {[%clk 0:02:01]}  Qd8 {[%clk 0:00:47]} 19. e3 {[%clk 0:01:58]}  Qg8 {[%clk 0:00:36]} 20. Ne2 {[%clk 0:01:57]}  Qh7 {[%clk 0:00:25]} 21. Rfe1 {[%clk 0:01:57]}  hxg3 {[%clk 0:00:24]} 22. hxg3 {[%clk 0:01:56]}  Qh2+ {[%clk 0:00:21]} 23. Kf1 {[%clk 0:01:57]}  Rag8 {[%clk 0:00:13]} 24. Rxc6 {[%clk 0:01:52]}  Nf6 {[%clk 0:00:13]} 25. Qxb5 {[%clk 0:01:44]}  Nd5 {[%clk 0:00:12]} 26. Qb7+ {[%clk 0:01:39]}  Kf6 {[%clk 0:00:11]} 27. Rxd6 {[%clk 0:01:36]}  Rxg3 {[%clk 0:00:00]} 28. Nxg3 {[%clk 0:01:32]} 1-0


[Site "https://www.chess.com"]

[Event "Titled Tuesday Blitz May 16 Early 2023"]
[White "Brown, Raehanna"]
[Black "Fajdetic, Hrvoje"]
[WhiteFideId "7402740"]
[BlackFideId "14501945"]
[WhiteElo "1655"]
[BlackElo "2185"]
[Result "1-0"]
[Round "10"]
[TimeControl "180+2"]
[Date "2023.05.16"]
[WhiteClock "0:00:13"]
[BlackClock "0:00:00"]

1. c4 {[%clk 0:03:00]}  e5 {[%clk 0:02:46]} 2. Nc3 {[%clk 0:02:48]}  f5 {[%clk 0:02:43]} 3. g3 {[%clk 0:02:48]}  d6 {[%clk 0:02:43]} 4. Bg2 {[%clk 0:02:49]}  Nf6 {[%clk 0:02:44]} 5. d3 {[%clk 0:02:49]}  Be7 {[%clk 0:02:44]} 6. e3 {[%clk 0:02:50]}  O-O {[%clk 0:02:44]} 7. Nge2 {[%clk 0:02:51]}  c6 {[%clk 0:02:44]} 8. O-O {[%clk 0:02:51]}  Qe8 {[%clk 0:02:45]} 9. f4 {[%clk 0:02:51]}  Qh5 {[%clk 0:02:44]} 10. Qd2 {[%clk 0:02:45]}  a5 {[%clk 0:02:39]} 11. b3 {[%clk 0:02:40]}  Na6 {[%clk 0:02:39]} 12. Ba3 {[%clk 0:02:37]}  Nb4 {[%clk 0:02:37]} 13. Rad1 {[%clk 0:02:28]}  Kh8 {[%clk 0:02:28]} 14. Bb2 {[%clk 0:02:23]}  Bd8 {[%clk 0:02:15]} 15. Na4 {[%clk 0:02:13]}  Rb8 {[%clk 0:02:06]} 16. fxe5 {[%clk 0:02:10]}  dxe5 {[%clk 0:02:01]} 17. Bxe5 {[%clk 0:02:09]}  Ng4 {[%clk 0:02:01]} 18. Bxg7+ {[%clk 0:01:56]}  Kxg7 {[%clk 0:01:55]} 19. h3 {[%clk 0:01:56]}  Nf6 {[%clk 0:01:33]} 20. Nf4 {[%clk 0:01:53]}  Qf7 {[%clk 0:01:27]} 21. Qb2 {[%clk 0:01:31]}  b5 {[%clk 0:01:10]} 22. cxb5 {[%clk 0:01:22]}  cxb5 {[%clk 0:01:11]} 23. Nc5 {[%clk 0:01:22]}  Bb6 {[%clk 0:01:10]} 24. d4 {[%clk 0:01:18]}  Kg8 {[%clk 0:00:52]} 25. a3 {[%clk 0:01:15]}  Nbd5 {[%clk 0:00:50]} 26. Rfe1 {[%clk 0:01:01]}  Nxf4 {[%clk 0:00:44]} 27. gxf4 {[%clk 0:00:58]}  Bxc5 {[%clk 0:00:40]} 28. dxc5 {[%clk 0:00:58]}  Ne4 {[%clk 0:00:35]} 29. Kh1 {[%clk 0:00:51]}  Be6 {[%clk 0:00:29]} 30. Bxe4 {[%clk 0:00:48]}  h6 {[%clk 0:00:16]} 31. Bf3 {[%clk 0:00:39]}  Kh7 {[%clk 0:00:15]} 32. Rg1 {[%clk 0:00:38]}  Bxb3 {[%clk 0:00:14]} 33. Rd6 {[%clk 0:00:25]}  Rg8 {[%clk 0:00:13]} 34. c6 {[%clk 0:00:21]}  Rxg1+ {[%clk 0:00:11]} 35. Kxg1 {[%clk 0:00:21]}  Qg7+ {[%clk 0:00:09]} 36. Qxg7+ {[%clk 0:00:20]}  Kxg7 {[%clk 0:00:10]} 37. Rd7+ {[%clk 0:00:16]}  Kf6 {[%clk 0:00:09]} 38. c7 {[%clk 0:00:16]}  Rc8 {[%clk 0:00:06]} 39. Bb7 {[%clk 0:00:16]}  Rg8+ {[%clk 0:00:04]} 40. Kf2 {[%clk 0:00:15]}  Be6 {[%clk 0:00:00]} 41. Rd8 {[%clk 0:00:13]} 1-0


[Site "https://www.chess.com"]

[Event "Titled Tuesday Blitz May 16 Early 2023"]
[White "Llanos, Guillermo"]
[Black "dDobravcan"]
[WhiteFideId "100358"]
[WhiteElo "2225"]
[BlackElo "2146"]
[Result "1-0"]
[Round "10"]
[TimeControl "180+2"]
[Date "2023.05.16"]
[WhiteClock "0:00:20"]
[BlackClock "0:00:00"]

1. Nf3 {[%clk 0:03:00]}  d6 {[%clk 0:02:58]} 2. d4 {[%clk 0:02:58]}  Bg4 {[%clk 0:02:58]} 3. e4 {[%clk 0:02:56]}  c6 {[%clk 0:02:56]} 4. Be2 {[%clk 0:02:55]}  Nf6 {[%clk 0:02:55]} 5. Nc3 {[%clk 0:02:54]}  e6 {[%clk 0:02:51]} 6. Be3 {[%clk 0:02:53]}  Be7 {[%clk 0:02:49]} 7. O-O {[%clk 0:02:52]}  O-O {[%clk 0:02:48]} 8. a4 {[%clk 0:02:52]}  a5 {[%clk 0:02:46]} 9. Nd2 {[%clk 0:02:44]}  Bxe2 {[%clk 0:02:42]} 10. Qxe2 {[%clk 0:02:45]}  d5 {[%clk 0:02:42]} 11. e5 {[%clk 0:02:44]}  Nfd7 {[%clk 0:02:40]} 12. f4 {[%clk 0:02:42]}  c5 {[%clk 0:02:38]} 13. f5 {[%clk 0:02:31]}  cxd4 {[%clk 0:02:37]} 14. Bxd4 {[%clk 0:02:32]}  Nc6 {[%clk 0:02:37]} 15. Nb5 {[%clk 0:02:24]}  Nxd4 {[%clk 0:02:18]} 16. Nxd4 {[%clk 0:02:24]}  Qb6 {[%clk 0:02:18]} 17. Nb3 {[%clk 0:02:21]}  Rfe8 {[%clk 0:01:50]} 18. fxe6 {[%clk 0:02:18]}  fxe6 {[%clk 0:01:48]} 19. Kh1 {[%clk 0:02:16]}  Bf8 {[%clk 0:01:43]} 20. Rae1 {[%clk 0:01:56]}  g6 {[%clk 0:01:19]} 21. h4 {[%clk 0:01:47]}  Bg7 {[%clk 0:01:19]} 22. h5 {[%clk 0:01:35]}  Nxe5 {[%clk 0:01:16]} 23. hxg6 {[%clk 0:01:28]}  hxg6 {[%clk 0:01:12]} 24. c3 {[%clk 0:00:49]}  Nf7 {[%clk 0:01:00]} 25. Nb5 {[%clk 0:00:48]}  e5 {[%clk 0:00:56]} 26. Qg4 {[%clk 0:00:46]}  Nh6 {[%clk 0:00:47]} 27. Qd7 {[%clk 0:00:43]}  Rad8 {[%clk 0:00:45]} 28. Qh3 {[%clk 0:00:40]}  Nf5 {[%clk 0:00:39]} 29. g4 {[%clk 0:00:38]}  Nd6 {[%clk 0:00:37]} 30. Qf3 {[%clk 0:00:28]}  e4 {[%clk 0:00:31]} 31. Qf4 {[%clk 0:00:21]}  Nxb5 {[%clk 0:00:19]} 32. Qf7+ {[%clk 0:00:20]}  Kh7 {[%clk 0:00:00]} 33. Re2 {[%clk 0:00:20]} 1-0


[Site "https://www.chess.com"]

[Event "Titled Tuesday Blitz May 16 Early 2023"]
[White "stratacticos"]
[Black "Rose, Felix"]
[BlackFideId "5105722"]
[WhiteElo "1908"]
[BlackElo "2039"]
[Result "0-1"]
[Round "10"]
[TimeControl "180+2"]
[Date "2023.05.16"]
[WhiteClock "0:01:14"]
[BlackClock "0:00:13"]

1. e4 {[%clk 0:02:59]}  d6 {[%clk 0:02:59]} 2. d4 {[%clk 0:02:58]}  Nf6 {[%clk 0:02:59]} 3. Nc3 {[%clk 0:02:57]}  g6 {[%clk 0:03:00]} 4. Be2 {[%clk 0:02:56]}  Bg7 {[%clk 0:03:00]} 5. Be3 {[%clk 0:02:56]}  O-O {[%clk 0:02:57]} 6. g4 {[%clk 0:02:51]}  c6 {[%clk 0:02:50]} 7. g5 {[%clk 0:02:50]}  Nfd7 {[%clk 0:02:50]} 8. h4 {[%clk 0:02:48]}  b5 {[%clk 0:02:48]} 9. a3 {[%clk 0:02:48]}  a5 {[%clk 0:02:46]} 10. Nh3 {[%clk 0:02:43]}  Bb7 {[%clk 0:02:43]} 11. Qd2 {[%clk 0:02:38]}  b4 {[%clk 0:02:30]} 12. axb4 {[%clk 0:02:36]}  axb4 {[%clk 0:02:31]} 13. Na2 {[%clk 0:02:29]}  c5 {[%clk 0:02:24]} 14. f3 {[%clk 0:02:26]}  cxd4 {[%clk 0:01:59]} 15. Bxd4 {[%clk 0:02:26]}  Bxd4 {[%clk 0:01:59]} 16. Qxd4 {[%clk 0:02:25]}  Nc6 {[%clk 0:01:59]} 17. Qd2 {[%clk 0:02:19]}  Qb6 {[%clk 0:01:55]} 18. b3 {[%clk 0:02:09]}  Ba6 {[%clk 0:01:17]} 19. Bxa6 {[%clk 0:02:04]}  Rxa6 {[%clk 0:01:17]} 20. Nf2 {[%clk 0:02:03]}  Rfa8 {[%clk 0:01:14]} 21. h5 {[%clk 0:01:55]}  Rxa2 {[%clk 0:01:11]} 22. Rxa2 {[%clk 0:01:54]}  Rxa2 {[%clk 0:01:11]} 23. hxg6 {[%clk 0:01:53]}  Ra1+ {[%clk 0:00:57]} 24. Nd1 {[%clk 0:01:25]}  hxg6 {[%clk 0:00:23]} 25. Ke2 {[%clk 0:01:19]}  Nd4+ {[%clk 0:00:17]} 26. Kd3 {[%clk 0:01:14]}  Ne5+ {[%clk 0:00:13]} 0-1


[Site "https://www.chess.com"]

[Event "Titled Tuesday Blitz May 16 Early 2023"]
[White "Mazurkiewicz, Michal"]
[Black "Winkels, Marcel"]
[WhiteFideId "1124943"]
[BlackFideId "1003887"]
[WhiteElo "2054"]
[BlackElo "1900"]
[Result "1-0"]
[Round "10"]
[TimeControl "180+2"]
[Date "2023.05.16"]
[WhiteClock "0:02:28"]
[BlackClock "0:00:01"]

1. e4 {[%clk 0:03:00]}  Nf6 {[%clk 0:02:57]} 2. d3 {[%clk 0:03:00]}  d5 {[%clk 0:02:56]} 3. Nd2 {[%clk 0:03:00]}  c5 {[%clk 0:02:56]} 4. Ngf3 {[%clk 0:03:00]}  Nc6 {[%clk 0:02:55]} 5. g3 {[%clk 0:02:59]}  d4 {[%clk 0:02:50]} 6. Bg2 {[%clk 0:02:58]}  e5 {[%clk 0:02:50]} 7. Nc4 {[%clk 0:02:58]}  Bd6 {[%clk 0:02:48]} 8. a4 {[%clk 0:02:58]}  h6 {[%clk 0:02:46]} 9. O-O {[%clk 0:02:58]}  O-O {[%clk 0:02:45]} 10. Nh4 {[%clk 0:02:58]}  Be6 {[%clk 0:02:45]} 11. b3 {[%clk 0:02:58]}  a6 {[%clk 0:02:34]} 12. Bd2 {[%clk 0:02:53]}  b5 {[%clk 0:02:33]} 13. axb5 {[%clk 0:02:53]}  Bxc4 {[%clk 0:02:27]} 14. bxc4 {[%clk 0:02:41]}  axb5 {[%clk 0:02:25]} 15. cxb5 {[%clk 0:02:41]}  Nb4 {[%clk 0:02:18]} 16. Rxa8 {[%clk 0:02:41]}  Qxa8 {[%clk 0:02:15]} 17. Nf5 {[%clk 0:02:42]}  Qb8 {[%clk 0:01:48]} 18. f4 {[%clk 0:02:41]}  exf4 {[%clk 0:01:30]} 19. Bxf4 {[%clk 0:02:41]}  Bxf4 {[%clk 0:01:29]} 20. Rxf4 {[%clk 0:02:42]}  Qxb5 {[%clk 0:01:02]} 21. Nxh6+ {[%clk 0:02:35]}  Kh7 {[%clk 0:01:00]} 22. Rxf6 {[%clk 0:02:28]}  gxf6 {[%clk 0:00:55]} 23. Qh5 {[%clk 0:02:28]}  Kg7 {[%clk 0:00:01]} 24. Nf5+ {[%clk 0:02:28]} 1-0


[Site "https://www.chess.com"]